bitfinex/quotes_BTCUSD_20250118
["timestamp","ask_amount","ask_price","bid_price","bid_amount"]
[1737193193281,0.6026754,103060.0,103050.0,0.16638702]
[1737193194307,0.6026754,103060.0,103050.0,0.23862028]
[1737193194547,0.9294754,103060.0,103050.0,0.16638702]
[1737193195334,1.02871621,103060.0,103050.0,0.06088702]
[1737193195533,0.9294754,103060.0,103050.0,0.06088702]
[1737193198012,0.95724214,103060.0,103050.0,0.06088702]
[1737193198212,1.03404214,103060.0,103050.0,0.06088702]
[1737193198632,1.03863714,103060.0,103050.0,0.06088702]
[1737193198801,1.23787795,103060.0,103050.0,0.06088702]
[1737193199547,0.87871621,103060.0,103050.0,0.06088702]
[1737193199694,0.91107795,103060.0,103050.0,0.06088702]
[1737193200701,0.94342301,103060.0,103050.0,0.06088702]
[1737193201778,1.15805467,103060.0,103050.0,0.06088702]
[1737193203024,1.3300946,103060.0,103050.0,0.06088702]
[1737193203227,1.29774954,103060.0,103050.0,0.06088702]
[1737193203430,1.34694954,103060.0,103050.0,0.06088702]
[1737193203856,1.34708887,103060.0,103050.0,0.06088702]
[1737193204068,1.34708887,103060.0,103050.0,0.02207102]
[1737193204242,1.34708887,103060.0,103050.0,0.00266302]
[1737193204725,1.37943393,103060.0,103050.0,0.00266302]
[1737193205109,1.34708887,103060.0,103050.0,0.00266302]
[1737193205263,1.31472713,103060.0,103050.0,0.00266302]
[1737193206390,1.20053306,103060.0,103050.0,0.00266302]
[1737193206808,1.20039373,103060.0,103050.0,0.00266302]
[1737193207193,1.32961854,103060.0,103050.0,0.00266302]
[1737193207579,1.15281854,103060.0,103050.0,0.00266302]
[1737193208315,0.63692214,103060.0,103050.0,0.00266302]
[1737193208735,0.68091692,103060.0,103050.0,0.00266302]
[1737193209151,0.63692214,103060.0,103050.0,0.00266302]
[1737193209929,0.85210522,103060.0,103050.0,0.00266302]
[1737193210741,0.85210522,103060.0,103050.0,0.00309152]
[1737193210880,0.85300508,103060.0,103050.0,0.00309152]
[1737193211094,0.66875834,103060.0,103050.0,0.08579152]
[1737193211519,0.66875834,103060.0,103050.0,0.10879152]
[1737193211925,0.81875834,103060.0,103050.0,0.10879152]
[1737193212320,0.53995178,103060.0,103050.0,0.10879152]
[1737193212698,0.68995178,103060.0,103050.0,0.10879152]
[1737193213466,0.49524223,103060.0,103050.0,0.18102478]
[1737193213873,0.60357526,103060.0,103050.0,0.18102478]
[1737193214969,0.68995178,103060.0,103050.0,0.18102478]
[1737193216347,0.99079827,103060.0,103050.0,0.18102478]
[1737193217767,0.88246524,103060.0,103050.0,0.18102478]
[1737193218383,0.71042531,103060.0,103050.0,0.18102478]
[1737193218909,0.71042531,103060.0,103050.0,0.22732478]
[1737193219868,0.42201955,103060.0,103050.0,0.32436478]
[1737193220052,0.22574874,103060.0,103050.0,0.32436478]
[1737193220935,0.13937222,103060.0,103050.0,0.32436478]
[1737193225416,0.13911186,103060.0,103050.0,0.32436478]
[1737193226259,0.13911186,103060.0,103050.0,0.25213152]
[1737193226449,0.23614186,103060.0,103050.0,0.22732478]
[1737193228064,0.23614186,103060.0,103050.0,0.32436478]
[1737193228255,0.23614186,103060.0,103050.0,0.22732478]
[1737193229755,0.23614186,103060.0,103050.0,0.15509152]
[1737193230006,0.23614186,103060.0,103050.0,0.22732478]
[1737193230212,0.4437157,103060.0,103050.0,0.15802478]
[1737193230791,0.4437157,103060.0,103050.0,0.18102478]
[1737193230792,0.33538267,103060.0,103050.0,0.18102478]
[1737193231978,0.23600253,103060.0,103050.0,0.22742478]
[1737193232122,0.23600253,103060.0,103050.0,0.32446478]
[1737193232348,0.23600253,103060.0,103050.0,0.22742478]
[1737193232952,0.23600253,103060.0,103050.0,0.32446478]
[1737193233392,0.23600253,103060.0,103050.0,0.43446478]
[1737193233794,0.23614186,103060.0,103050.0,0.43446478]
[1737193234604,0.13911186,103060.0,103050.0,0.43446478]
[1737193235370,0.23614186,103060.0,103050.0,0.43446478]
[1737193235571,0.23600253,103060.0,103050.0,0.43446478]
[1737193236462,0.13897253,103060.0,103050.0,0.43446478]
[1737193238332,0.23600253,103060.0,103050.0,0.43446478]
[1737193239057,0.13897253,103060.0,103050.0,0.43446478]
[1737193242045,0.23600253,103060.0,103050.0,0.43446478]
[1737193242634,0.13897253,103060.0,103050.0,0.43446478]
[1737193243573,0.23600253,103060.0,103050.0,0.43446478]
[1737193243981,0.13897253,103060.0,103050.0,0.43446478]
[1737193244147,0.23748253,103060.0,103050.0,0.43446478]
[1737193244682,0.14045253,103060.0,103050.0,0.43446478]
[1737193246888,0.23748253,103060.0,103050.0,0.43446478]
[1737193248516,0.23748253,103060.0,103050.0,0.43180176]
[1737193249122,0.23762186,103060.0,103050.0,0.43180176]
[1737193249347,0.14059186,103060.0,103050.0,0.43180176]
[1737193250554,0.23762186,103060.0,103050.0,0.43180176]
[1737193252052,0.14059186,103060.0,103050.0,0.43180176]
[1737193255456,0.23762186,103060.0,103050.0,0.43180176]
[1737193256157,0.14059186,103060.0,103050.0,0.43180176]
[1737193256739,0.23762186,103060.0,103050.0,0.43180176]
[1737193258604,0.14059186,103060.0,103050.0,0.43180176]
[1737193261233,0.23762186,103060.0,103050.0,0.43180176]
[1737193262965,0.23716997,103060.0,103050.0,0.43180176]
[1737193264684,0.14013997,103060.0,103050.0,0.43180176]
[1737193265040,0.03180694,103060.0,103050.0,0.43180176]
[1737193265243,0.03180694,103060.0,103050.0,0.88096257]
[1737193265452,0.00251919,103060.0,103050.0,0.88096257]
[1737193267077,0.00251919,103060.0,103050.0,1.57817672]
[1737193268464,0.00251919,103060.0,103050.0,1.57827688]
[1737193269003,0.00251919,103060.0,103050.0,1.58779748]
[1737193270327,0.00251919,103060.0,103050.0,1.60734552]
[1737193271485,0.00251919,103060.0,103050.0,1.73795558]
[1737193275859,0.00251919,103060.0,103050.0,1.75607649]
[1737193276378,0.00251919,103060.0,103050.0,1.84307291]
[1737193278179,0.00251919,103060.0,103050.0,1.824952]
[1737193279942,0.00237986,103060.0,103050.0,1.831112]
[1737193281314,0.00237986,103060.0,103050.0,1.96963033]
[1737193281515,0.00237986,103060.0,103050.0,1.88263391]
[1737193282642,0.00237986,103060.0,103050.0,1.85244861]
[1737193282850,0.00237986,103060.0,103050.0,1.57871969]
[1737193285142,8.6e-07,103060.0,103050.0,1.54853861]
[1737193285846,8.6e-07,103060.0,103050.0,1.57870998]
[1737193286977,8.6e-07,103060.0,103050.0,1.75248677]
[1737193287153,8.6e-07,103060.0,103050.0,1.7223154]
[1737193288846,8.6e-07,103060.0,103050.0,1.60782237]
[1737193289052,8.6e-07,103060.0,103050.0,1.61398237]
[1737193289452,8.6e-07,103060.0,103050.0,1.7223154]
[1737193289874,0.00089964,103070.0,103060.0,0.63211629]
[1737193290086,0.00089964,103070.0,103060.0,0.7313571]
[1737193290713,0.00089964,103070.0,103060.0,0.62302407]
[1737193291052,0.00089964,103070.0,103060.0,0.84020082]
[1737193293610,0.00089964,103070.0,103060.0,0.62302407]
[1737193294260,0.00089964,103070.0,103060.0,0.7313571]
[1737193294880,0.00089964,103070.0,103060.0,0.8813571]
[1737193295055,0.00089964,103070.0,103060.0,0.9682278]
[1737193295265,6.4e-07,103070.0,103060.0,0.99841015]
[1737193296432,6.4e-07,103070.0,103060.0,1.73475891]
[1737193297425,6.4e-07,103070.0,103060.0,1.60445286]
[1737193298053,6.4e-07,103070.0,103060.0,1.49611983]
[1737193299607,6.4e-07,103070.0,103060.0,1.71323123]
[1737193299809,6.4e-07,103070.0,103060.0,1.61947123]
[1737193300281,6.4e-07,103070.0,103060.0,1.71939123]
[1737193300479,6.4e-07,103070.0,103060.0,1.66969123]
[1737193300662,6.4e-07,103070.0,103060.0,1.63950888]
[1737193301235,6.4e-07,103070.0,103060.0,1.42282248]
[1737193302248,6.4e-07,103070.0,103060.0,0.81632863]
[1737193303022,6.4e-07,103070.0,103060.0,0.81675653]
[1737193303220,6.4e-07,103070.0,103060.0,0.84699352]
[1737193303446,6.4e-07,103070.0,103060.0,0.97726036]
[1737193304626,6.4e-07,103070.0,103060.0,1.28151481]
[1737193305741,6.4e-07,103070.0,103060.0,1.4491316]
[1737193308349,6.4e-07,103070.0,103060.0,1.3672316]
[1737193308952,6.4e-07,103070.0,103060.0,1.36709227]
[1737193310130,6.4e-07,103070.0,103060.0,1.49693411]
[1737193311107,6.4e-07,103070.0,103060.0,1.36666727]
[1737193313134,6.4e-07,103070.0,103060.0,1.19289048]
[1737193313334,6.4e-07,103070.0,103060.0,1.26839048]
[1737193314042,6.4e-07,103070.0,103060.0,1.42212351]
[1737193315693,6.4e-07,103070.0,103060.0,1.46538702]
[1737193318078,6.4e-07,103070.0,103060.0,1.84921931]
[1737193319035,6.4e-07,103070.0,103060.0,1.5892694]
[1737193321161,6.4e-07,103070.0,103060.0,1.48093637]
[1737193324236,6.4e-07,103070.0,103060.0,1.38101637]
[1737193324455,6.4e-07,103070.0,103060.0,1.3187957]
[1737193324807,0.1523028,103090.0,103080.0,0.16924526]
[1737193325338,0.1523028,103090.0,103080.0,0.34224526]
[1737193326354,0.1523028,103090.0,103080.0,0.19224526]
[1737193327769,0.2001028,103090.0,103080.0,0.19224526]
[1737193328879,0.8153028,103090.0,103080.0,0.19224526]
[1737193333763,0.9123048,103090.0,103080.0,0.19224526]
[1737193334495,0.9423048,103090.0,103080.0,0.19224526]
[1737193334950,0.3271048,103090.0,103080.0,0.19224526]
[1737193335340,0.32654439,103090.0,103080.0,0.19224526]
[1737193338459,0.39768678,103090.0,103080.0,0.19224526]
[1737193338835,0.39858537,103090.0,103080.0,0.19224526]
[1737193339389,0.49782618,103090.0,103080.0,0.07223326]
[1737193340480,0.32744298,103090.0,103080.0,0.19224526]
[1737193341030,0.23044098,103090.0,103080.0,0.19224526]
[1737193341667,0.4138195,103090.0,103080.0,0.19224526]
[1737193342725,0.32744298,103090.0,103080.0,0.19224526]
[1737193343487,0.36471581,103090.0,103080.0,0.19224526]
[1737193347501,0.31691581,103090.0,103080.0,0.19224526]
[1737193348335,0.31691581,103090.0,103080.0,0.09523326]
[1737193349661,0.31691581,103090.0,103080.0,0.19224526]
[1737193349869,0.31691581,103090.0,103080.0,0.09566106]
[1737193350084,0.31691581,103090.0,103080.0,0.0234278]
[1737193350316,0.31691581,103090.0,103080.0,0.09566106]
[1737193351518,0.41615662,103090.0,103080.0,0.09566106]
[1737193352275,0.41615662,103090.0,103080.0,0.07266106]
[1737193352492,0.46545662,103090.0,103080.0,0.07266106]
[1737193353685,0.47506087,103090.0,103080.0,0.07266106]
[1737193353896,0.58347609,103090.0,103080.0,0.07266106]
[1737193354070,0.47506087,103090.0,103080.0,0.07266106]
[1737193354448,0.58347609,103090.0,103080.0,0.07266106]
[1737193354896,0.73347609,103090.0,103080.0,0.0004278]
[1737193355064,0.83264571,103090.0,103080.0,0.0004278]
[1737193355284,0.81985261,103090.0,103080.0,0.0004278]
[1737193356358,0.84761935,103090.0,103080.0,0.0004278]
[1737193356493,1.28309923,103090.0,103080.0,0.0004278]
[1737193357878,1.02746046,103090.0,103080.0,0.0004278]
[1737193359351,1.04733338,103090.0,103080.0,0.0004278]
[1737193360743,0.97014026,103090.0,103080.0,0.0004278]
[1737193360950,0.86768504,103090.0,103080.0,0.0004278]
[1737193361160,0.97610026,103090.0,103080.0,0.0004278]
[1737193361357,0.95622734,103090.0,103080.0,0.0004278]
[1737193362129,1.2596841,103090.0,103080.0,0.0004278]
[1737193363496,1.14530888,103090.0,103080.0,0.0004278]
[1737193363727,1.0152154,103090.0,103080.0,0.0004278]
[1737193364135,1.0152154,103090.0,103080.0,0.09566106]
[1737193364136,0.86667459,103090.0,103080.0,0.09566106]
[1737193364375,0.77647034,103090.0,103080.0,0.09566106]
[1737193364581,0.62647034,103090.0,103080.0,0.09566106]
[1737193365003,0.23631581,103090.0,103080.0,0.09566106]
[1737193368885,0.23631581,103090.0,103080.0,0.0004278]
[1737193368886,0.59397184,103090.0,103080.0,0.0004278]
[1737193369065,0.81871265,103090.0,103080.0,0.0004278]
[1737193369902,0.84647939,103090.0,103080.0,0.0004278]
[1737193370468,0.95055616,103090.0,103080.0,0.0004278]
[1737193370673,0.87015839,103090.0,103080.0,0.0004278]
[1737193371092,0.27478774,103070.0,103060.0,0.0004279]
[1737193371297,0.27478774,103070.0,103050.0,0.1104285]
[1737193371298,0.32263,103060.0,103050.0,0.1104285]
[1737193371496,0.32263,103060.0,103040.0,0.0008279]
[1737193371497,0.14694,103050.0,103040.0,0.0008279]
[1737193371824,0.45796277,103050.0,103040.0,0.00087832]
[1737193371941,0.60796277,103050.0,103040.0,0.00087832]
[1737193372134,0.63731115,103050.0,103040.0,0.00087832]
[1737193372336,0.73655196,103050.0,103040.0,0.00087832]
[1737193372545,0.84496718,103050.0,103040.0,0.00087832]
[1737193373001,1.20551428,103050.0,103040.0,0.00087832]
[1737193373757,1.12577871,103050.0,103040.0,0.00087832]
[1737193375333,1.03890521,103050.0,103040.0,0.00087832]
[1737193375530,1.04881898,103050.0,103040.0,0.00087832]
[1737193376518,1.13527512,103050.0,103040.0,0.00087832]
[1737193376699,1.16527512,103050.0,103040.0,0.00087832]
[1737193376931,1.26451593,103050.0,103040.0,0.00087832]
[1737193378219,1.36609757,103050.0,103040.0,0.00087832]
[1737193378631,1.36815962,103050.0,103040.0,0.00087832]
[1737193379398,1.26527512,103050.0,103040.0,0.00087832]
[1737193379607,0.9924056,103050.0,103040.0,0.00087832]
[1737193379801,0.247068,103020.0,103010.0,0.07266136]
[1737193380024,0.10841522,103020.0,103010.0,0.24874324]
[1737193380226,0.21683044,103020.0,103010.0,0.24874324]
[1737193380452,0.21683044,103020.0,103010.0,0.29414324]
[1737193381137,0.10841522,103020.0,103010.0,0.31714324]
[1737193381323,0.21683044,103020.0,103010.0,0.31714324]
[1737193381477,0.21683044,103020.0,103010.0,0.22006624]
[1737193381682,0.31389844,103020.0,103010.0,0.19706624]
[1737193383201,0.41313925,103020.0,103010.0,0.19706624]
[1737193386129,0.41313925,103020.0,103010.0,0.00093298]
[1737193386356,0.56313925,103020.0,103010.0,0.00093298]
[1737193386817,0.56313925,103020.0,103010.0,0.07316624]
[1737193387027,0.56313925,103020.0,103010.0,0.19756624]
[1737193387028,0.20548322,103020.0,103010.0,0.19756624]
[1737193387480,0.31389844,103020.0,103010.0,0.19756624]
[1737193388175,0.20548322,103020.0,103010.0,0.19756624]
[1737193388336,0.31389844,103020.0,103010.0,0.19756624]
[1737193388775,0.20548322,103020.0,103010.0,0.19756624]
[1737193388947,0.31389844,103020.0,103010.0,0.19756624]
[1737193389565,0.20548322,103020.0,103010.0,0.19756624]
[1737193389965,0.10841522,103020.0,103010.0,0.29464324]
[1737193390310,0.10841522,103020.0,103010.0,0.19756624]
[1737193390438,0.20548322,103020.0,103010.0,0.19756624]
[1737193392965,0.31389844,103020.0,103010.0,0.19756624]
[1737193394325,0.20548322,103020.0,103010.0,0.19756624]
[1737193394671,0.31389844,103020.0,103010.0,0.19756624]
[1737193396396,0.10841522,103020.0,103010.0,0.29464324]
[1737193396603,0.097065,103030.0,103020.0,0.07223326]
[1737193396802,0.291184,103030.0,103020.0,0.07223326]
[1737193396921,0.441184,103030.0,103020.0,0.07223326]
[1737193397682,0.54959922,103030.0,103020.0,0.07223326]
[1737193399428,0.39959922,103030.0,103020.0,0.07223326]
[1737193401631,0.50801444,103030.0,103020.0,0.07223326]
[1737193401774,0.097068,103020.0,103010.0,0.19756624]
[1737193402136,0.31389844,103020.0,103010.0,0.04893298]
[1737193402668,0.31389844,103020.0,103010.0,0.12116624]
[1737193402893,0.41313925,103020.0,103010.0,0.12116624]
[1737193403293,0.41313925,103020.0,103010.0,0.07316624]
[1737193404122,0.41313925,103020.0,103010.0,0.00093298]
[1737193409586,0.4229781,103020.0,103010.0,0.00093298]
[1737193409950,0.4229781,103020.0,103010.0,0.07316624]
[1737193410150,0.30472403,103020.0,103010.0,0.07316624]
[1737193410361,0.41313925,103020.0,103010.0,0.07316624]
[1737193412734,0.31389844,103020.0,103010.0,0.07316624]
[1737193412957,0.31389844,103020.0,103010.0,0.15406624]
[1737193413123,0.31389844,103020.0,103010.0,0.25114324]
[1737193413321,0.20548322,103020.0,103010.0,0.15406624]
[1737193413725,0.31389844,103020.0,103010.0,0.15406624]
[1737193415717,0.7024859,103020.0,103010.0,0.15406624]
[1737193417162,0.80245339,103020.0,103010.0,0.15406624]
[1737193417344,0.80245339,103020.0,103010.0,0.00093298]
[1737193418715,0.67306957,103020.0,103010.0,0.00093298]
[1737193419138,0.70306957,103020.0,103010.0,0.00093298]
[1737193420513,0.70306957,103020.0,103010.0,0.07316624]
[1737193421439,0.70306957,103020.0,103010.0,0.15106624]
[1737193421440,0.49541354,103020.0,103010.0,0.15106624]
[1737193421859,0.60382876,103020.0,103010.0,0.15106624]
[1737193422904,0.86525364,103020.0,103010.0,0.15106624]
[1737193423308,1.11449445,103020.0,103010.0,0.07316624]
[1737193423507,1.19199445,103020.0,103010.0,0.00093298]
[1737193424438,0.93056957,103020.0,103010.0,0.00093298]
[1737193426764,1.4128188,103020.0,103010.0,0.00093298]
[1737193428092,1.43197567,103020.0,103010.0,0.00093298]
[1737193429270,1.24352888,103020.0,103010.0,0.00093298]
[1737193431567,0.95034827,103020.0,103010.0,0.00093298]
[1737193433931,0.99175572,103020.0,103010.0,0.00093298]
[1737193434114,0.95034827,103020.0,103010.0,0.00093298]
[1737193435445,1.43157914,103020.0,103010.0,0.00093298]
[1737193439672,1.35407914,103020.0,103010.0,0.00093298]
[1737193440572,0.8727172,103020.0,103010.0,0.00093298]
[1737193448434,1.16589781,103020.0,103010.0,0.00093298]
[1737193449792,1.35438922,103020.0,103010.0,0.00093298]
[1737193450120,1.45363003,103020.0,103010.0,0.00093298]
[1737193450745,1.35438922,103020.0,103010.0,0.00093298]
[1737193451871,1.43678922,103020.0,103010.0,0.00093298]
[1737193454580,1.45978922,103020.0,103010.0,0.00093298]
[1737193454785,1.43678922,103020.0,103010.0,0.00093298]
[1737193461669,1.35438922,103020.0,103010.0,0.00093298]
[1737193463840,1.47663003,103020.0,103010.0,0.00093298]
[1737193464542,1.35438922,103020.0,103010.0,0.00093298]
[1737193467521,1.35438922,103020.0,103010.0,0.15636624]
[1737193467944,1.35438922,103020.0,103010.0,0.20586624]
[1737193468376,0.97757632,103020.0,103010.0,0.20586624]
[1737193468750,1.12757632,103020.0,103010.0,0.20586624]
[1737193469333,0.64657754,103020.0,103010.0,0.20586624]
[1737193469968,0.26109432,103020.0,103010.0,0.30391392]
[1737193470239,0.26109432,103020.0,103010.0,0.40218405]
[1737193470354,0.52219555,103020.0,103010.0,0.40218405]
[1737193470550,0.63061077,103020.0,103010.0,0.40218405]
[1737193471589,0.10841522,103020.0,103010.0,0.40218405]
[1737193472244,0.20548322,103020.0,103010.0,0.40218405]
[1737193473853,0.10841522,103020.0,103010.0,0.40218405]
[1737193479935,0.48658039,103030.0,103020.0,0.20493326]
[1737193480596,1.00965375,103040.0,103030.0,0.19783326]
[1737193481893,0.4874582,103040.0,103030.0,0.19783326]
[1737193484387,0.40047703,103040.0,103030.0,0.19783326]
[1737193486961,0.09795381,103040.0,103030.0,0.29489226]
[1737193487213,0.20636903,103040.0,103030.0,0.19783326]
[1737193487416,0.20636903,103040.0,103030.0,0.29489226]
[1737193487640,0.09795381,103040.0,103030.0,0.29489226]
[1737193487857,0.00089881,103040.0,103030.0,0.29489226]
[1737193488060,0.00089881,103040.0,103030.0,0.74405307]
[1737193489357,0.00089881,103040.0,103030.0,0.76705307]
[1737193489555,0.39164666,103060.0,103030.0,0.76705307]
[1737193489556,0.29241939,103070.0,103060.0,0.29486326]
[1737193490125,0.29241939,103070.0,103060.0,0.19783326]
[1737193490725,0.29241939,103070.0,103060.0,0.19788372]
[1737193491127,0.20543822,103070.0,103060.0,0.19788372]
[1737193492781,0.20543822,103070.0,103060.0,0.11998372]
[1737193493388,0.20543822,103070.0,103060.0,0.07228372]
[1737193495135,0.23543822,103070.0,103060.0,0.07228372]
[1737193498833,0.23633661,103070.0,103060.0,0.07228372]
[1737193507768,0.23633661,103070.0,103060.0,0.12108372]
[1737193507998,0.23633661,103070.0,103060.0,0.20328372]
[1737193508261,0.23633661,103070.0,103060.0,0.30031372]
[1737193508761,0.20633661,103070.0,103060.0,0.20328372]
[1737193509566,0.20633661,103070.0,103060.0,0.13105046]
[1737193509713,0.20633661,103070.0,103060.0,0.20328372]
[1737193510266,0.30557742,103070.0,103060.0,0.07228372]
[1737193513247,0.20633661,103070.0,103060.0,0.15168372]
[1737193513467,0.09792139,103070.0,103060.0,0.19718372]
[1737193513673,0.20633661,103070.0,103060.0,0.19718372]
[1737193513879,0.20633661,103070.0,103060.0,0.29421372]
[1737193514655,0.20633661,103070.0,103060.0,0.19718372]
[1737193515455,0.09792139,103070.0,103060.0,0.19718372]
[1737193515898,0.09792139,103070.0,103060.0,0.29421372]
[1737193516135,0.00089839,103070.0,103060.0,0.29421372]
[1737193516343,0.00089839,103070.0,103060.0,0.39345453]
[1737193516547,0.00089839,103070.0,103060.0,0.49345453]
[1737193521029,0.00089839,103070.0,103060.0,0.74337453]
[1737193523169,0.00089839,103070.0,103060.0,0.59337453]
[1737193524575,0.20633461,103070.0,103060.0,0.39345453]
[1737193524768,0.10931361,103070.0,103060.0,0.49345453]
[1737193527147,0.00089839,103070.0,103060.0,0.49345453]
[1737193528377,0.09791939,103070.0,103060.0,0.49345453]
[1737193528575,0.09791939,103070.0,103060.0,0.39642453]
[1737193528770,0.09791939,103070.0,103060.0,0.29642453]
[1737193529179,0.30243922,103080.0,103070.0,0.07223326]
[1737193529332,0.39945122,103080.0,103070.0,0.07223326]
[1737193530263,0.50786644,103080.0,103070.0,0.07223326]
[1737193532903,0.65786644,103080.0,103070.0,0.07223326]
[1737193533105,0.74484761,103080.0,103070.0,0.07223326]
[1737193534230,1.04946168,103080.0,103070.0,0.07223326]
[1737193534401,1.05902691,103080.0,103070.0,0.07223326]
[1737193534714,1.05902691,103080.0,103070.0,0.07266096]
[1737193534913,1.05992508,103080.0,103070.0,0.07266096]
[1737193535291,0.97294391,103080.0,103070.0,0.07266096]
[1737193540422,1.0599765,103080.0,103070.0,0.07266096]
[1737193543041,1.28361731,103080.0,103070.0,0.0004277]
[1737193544256,1.15306497,103080.0,103070.0,0.0004277]
[1737193545584,1.18515126,103080.0,103070.0,0.0004277]
[1737193545882,1.28515126,103080.0,103070.0,0.0004277]
[1737193546627,0.09704,103050.0,103040.0,0.20096106]
[1737193546831,0.20545522,103050.0,103040.0,0.20101149]
[1737193547334,0.31387044,103050.0,103040.0,0.20101149]
[1737193547618,0.31387044,103050.0,103040.0,0.11851149]
[1737193547970,0.46387044,103050.0,103040.0,0.07271149]
[1737193548599,0.56311125,103050.0,103040.0,0.07271149]
[1737193548940,1.17102383,103050.0,103040.0,0.07271149]
[1737193549888,0.78022289,103050.0,103040.0,0.07271149]
[1737193552105,1.17058187,103050.0,103040.0,0.07271149]
[1737193554710,0.95347023,103050.0,103040.0,0.07271149]
[1737193555351,0.96333606,103050.0,103040.0,0.07271149]
[1737193557366,0.78984318,103050.0,103040.0,0.07271149]
[1737193557942,0.78984318,103050.0,103040.0,0.00047823]
[1737193559071,1.06425073,103050.0,103040.0,0.00047823]
[1737193559282,1.16425073,103050.0,103040.0,0.00010483]
[1737193559436,1.06500992,103050.0,103040.0,0.00010483]
[1737193560049,1.01424318,103050.0,103040.0,0.00010483]
[1737193560636,1.01448872,103050.0,103040.0,0.00010483]
[1737193561505,0.86858872,103050.0,103040.0,0.00010483]
[1737193561710,0.79008872,103050.0,103040.0,0.00010483]
[1737193561925,0.81322795,103050.0,103040.0,0.00010483]
[1737193562071,0.81322795,103050.0,103040.0,0.07233809]
[1737193562267,0.96322795,103050.0,103040.0,0.07233809]
[1737193562838,0.78937194,103050.0,103040.0,0.07233809]
[1737193563411,0.78964466,103050.0,103040.0,0.07233809]
[1737193564064,0.65980774,103050.0,103040.0,0.07233809]
[1737193565337,0.65980774,103050.0,103040.0,0.00010483]
[1737193565777,0.73910774,103050.0,103040.0,0.00010483]
[1737193565992,0.82163807,103050.0,103040.0,0.00010483]
[1737193566156,0.097049,103040.0,103030.0,0.0003035]
[1737193566358,0.30484139,103040.0,103030.0,0.00045487]
[1737193566722,0.41339297,103040.0,103030.0,0.00045487]
[1737193566923,0.41339297,103040.0,103030.0,0.07268813]
[1737193567170,0.41339297,103040.0,103030.0,0.00045487]
[1737193567863,0.49995091,103040.0,103030.0,0.00045487]
[1737193568694,0.57925091,103040.0,103030.0,0.00045487]
[1737193569074,0.70908783,103040.0,103030.0,0.00045487]
[1737193570722,1.09404745,103040.0,103030.0,0.00045487]
[1737193571774,1.12404745,103040.0,103030.0,0.00045487]
[1737193572049,1.03748951,103040.0,103030.0,0.00045487]
[1737193573403,1.05644009,103040.0,103030.0,0.00045487]
[1737193573969,1.14296656,103040.0,103030.0,0.00045487]
[1737193575125,1.05644009,103040.0,103030.0,0.00045487]
[1737193578737,0.97714009,103040.0,103030.0,0.07268813]
[1737193578957,0.97714009,103040.0,103030.0,0.12038813]
[1737193579576,0.97714009,103040.0,103030.0,0.19938813]
[1737193579577,0.75039712,103040.0,103030.0,0.19938813]
[1737193579984,0.61985654,103040.0,103030.0,0.19938813]
[1737193581124,0.23030933,103040.0,103030.0,0.19938813]
[1737193584332,0.23030933,103040.0,103030.0,0.29644713]
[1737193584537,0.13855158,103040.0,103030.0,0.29644713]
[1737193584892,0.23560058,103040.0,103030.0,0.29644713]
[1737193585042,0.13855158,103040.0,103030.0,0.39568794]
[1737193586050,0.23560058,103040.0,103030.0,0.39568794]
[1737193591248,0.23560058,103040.0,103030.0,0.29862894]
[1737193591448,0.23560058,103040.0,103030.0,0.39568794]
[1737193592371,0.23560058,103040.0,103030.0,0.29862894]
[1737193592574,0.23649939,103040.0,103030.0,0.29862894]
[1737193594357,0.23649939,103040.0,103030.0,0.12715487]
[1737193594532,0.23649939,103040.0,103030.0,0.19938813]
[1737193595310,0.32307045,103040.0,103030.0,0.19938813]
[1737193596669,0.45290737,103040.0,103030.0,0.19938813]
[1737193598674,0.32307045,103040.0,103030.0,0.19938813]
[1737193599929,0.45290737,103040.0,103030.0,0.19938813]
[1737193601936,0.32307045,103040.0,103030.0,0.19938813]
[1737193605989,0.32307045,103040.0,103030.0,0.19965266]
[1737193606190,0.45290737,103040.0,103030.0,0.19965266]
[1737193606399,0.66069976,103040.0,103030.0,0.07295266]
[1737193606765,0.81069976,103040.0,103030.0,0.07295266]
[1737193607151,0.88979976,103040.0,103030.0,0.0007194]
[1737193607362,1.28005063,103040.0,103030.0,0.0007194]
[1737193608444,1.41524898,103040.0,103030.0,0.0007194]
[1737193609614,0.8676072,103040.0,103030.0,0.07295266]
[1737193609809,0.97615878,103040.0,103030.0,0.07193704]
[1737193610148,0.7885072,103040.0,103030.0,0.07193704]
[1737193610441,0.873781,103040.0,103030.0,0.07193704]
[1737193610798,1.32245759,103040.0,103030.0,0.07193704]
[1737193612087,0.9712932,103040.0,103030.0,0.07193704]
[1737193612859,0.79765195,103040.0,103030.0,0.07193704]
[1737193613207,0.90620353,103040.0,103030.0,0.07193704]
[1737193613734,1.00544434,103040.0,103030.0,0.07193704]
[1737193614099,0.89689276,103040.0,103030.0,0.07193704]
[1737193614503,0.79765195,103040.0,103030.0,0.07193704]
[1737193614722,0.79765195,103040.0,103030.0,0.15223704]
[1737193615370,0.9713041,103040.0,103030.0,0.15223704]
[1737193616675,0.9713041,103040.0,103030.0,0.15266504]
[1737193616908,1.10157139,103040.0,103030.0,0.15266504]
[1737193617604,1.10157139,103040.0,103030.0,0.24972404]
[1737193618604,1.10157139,103040.0,103030.0,0.15266504]
[1737193619170,0.95157139,103040.0,103030.0,0.24972404]
[1737193620085,0.95157139,103040.0,103030.0,0.29922404]
[1737193620291,0.95157139,103040.0,103030.0,0.20216504]
[1737193621520,0.95157139,103040.0,103030.0,0.29922404]
[1737193621724,0.95157139,103040.0,103030.0,0.20216504]
[1737193622492,1.03847367,103040.0,103030.0,0.20216504]
[1737193623440,0.95157139,103040.0,103030.0,0.20216504]
[1737193623641,0.95157139,103040.0,103030.0,0.29922404]
[1737193624401,0.8213041,103040.0,103030.0,0.29922404]
[1737193625334,0.8213041,103040.0,103030.0,0.20216504]
[1737193629532,0.64765195,103040.0,103030.0,0.20216504]
[1737193632973,0.61765195,103040.0,103030.0,0.29922404]
[1737193633512,0.32650195,103040.0,103030.0,0.29922404]
[1737193633659,0.42355095,103040.0,103030.0,0.29922404]
[1737193634699,0.52212224,103040.0,103030.0,0.49846485]
[1737193634894,0.52212224,103040.0,103030.0,0.50796904]
[1737193635186,0.52212224,103040.0,103030.0,0.75788904]
[1737193635943,0.00089881,103040.0,103030.0,0.72461306]
[1737193637303,0.00089881,103040.0,103030.0,0.615152]
[1737193637552,0.00089881,103040.0,103030.0,0.72461306]
[1737193637786,0.10945039,103040.0,103030.0,0.70161306]
[1737193638220,0.10945039,103040.0,103030.0,0.65933806]
[1737193638430,0.00089881,103040.0,103030.0,0.68233806]
[1737193639395,0.10945039,103040.0,103030.0,0.65933806]
[1737193639651,0.00089881,103040.0,103030.0,0.65933806]
[1737193640073,0.00089881,103040.0,103030.0,0.68233806]
[1737193640279,0.32769881,103040.0,103030.0,0.68233806]
[1737193643033,0.32769881,103040.0,103030.0,0.90016436]
[1737193645408,0.27769881,103040.0,103030.0,0.91938934]
[1737193645716,0.27769881,103040.0,103030.0,0.78869356]
[1737193646255,0.00089881,103050.0,103040.0,0.45063006]
[1737193646537,0.00089881,103050.0,103040.0,0.54987087]
[1737193649576,0.10945039,103050.0,103040.0,0.55607087]
[1737193649996,0.10945039,103050.0,103040.0,0.69987087]
[1737193650194,0.10945039,103050.0,103040.0,0.70607087]